Cogmind - Beta 15 @@@ ROGUE MODE // 2025.05.31 @ 13:31:41 Player: Rohain Result: Self-destructed Performance ------------- Evolutions (4) 2000 Regions Visited (7) 1400 Robots Destroyed (93) 465 Value Destroyed (3979) 3979 Prototype IDs (14) 280 Alien Tech Used (0) 0 Bonus (966) 966 TOTAL SCORE: 9090 Bonus ------- High Alert Combat Kills 166 Entered DSFs 500 Acquired ECA 300 Cogmind --------- Core Integrity 345/850 Matter 295/300 Energy 100/100 System Corruption 2% Temperature Cool (0) Movement Core (350) Ox6 Location -6/Lower Caves Parts ------- > --- POWER (1) -------- (None) > --- PROPULSION (5) --- (None) > --- UTILITY (7) ------ Large Storage Unit Improved Signal Interpreter > --- WEAPON (2) ------- (None) > --- INVENTORY (15) --- Encrypted Comm Array Improved Core Shielding Pulse Rifle Thermic Laser Heavy Plasma Cannon Heavy Plasma Cannon Heavy Plasma Cannon Heavy Plasma Cannon Gauss Rifle Assault Cannon Assault Cannon Assault Cannon Heavy Rocket Launcher Molecular Deconstructor Peak State ------------ > --- POWER ------------ Nuclear Core > --- PROPULSION ------- Carbon-fiber Leg Improved Carbon-fiber Leg Improved Carbon-fiber Leg Flexi-carbon Leg Subdweller Monowheel > --- UTILITY ---------- Improved Heat Sink Improved Cooling System Large Storage Unit Improved Signal Interpreter Advanced Targeting Computer Energy Filter Layered Medium Armor Plating > --- WEAPON ----------- Heavy Plasma Cannon Heavy Plasma Cannon > --- INVENTORY -------- Light Deuterium Engine Improved Deuterium Engine Light Armor Plating Beam Rifle Pulse Rifle Heavy Plasma Cannon Heavy Plasma Cannon Heavy Plasma Cannon Gauss Rifle Assault Cannon Assault Cannon Assault Cannon Heavy Rocket Launcher [Rating: 58] Favorites ----------- Power Subdweller Power Source Engine Subdweller Power Source Power Core Nuclear Core Propulsion Aluminum Leg Treads Spiked Treads Leg Aluminum Leg Wheel Subdweller Monowheel Utility Improved Signal Interpreter Device Improved Cooling System Storage Large Storage Unit Processor Improved Signal Interpreter Protection Scrap Shield Weapon Heavy Battle Rifle Energy Gun Small Laser Energy Cannon Heavy Plasma Cannon Ballistic Gun Heavy Battle Rifle Ballistic Cannon Assault Cannon Launcher Heavy Rocket Launcher Special Weapon Molecular Deconstructor Build | -11 -10 -10 -8 -7 -7 -6 -6 ------- Run | Yrd Mat Sub Mat Fac DSF Fac Low Slots Evolved 8 | . . . 4 2 . 2 . Power . | . . . . . . . . Propulsion 3 | . . . 2 1 . . . Utility 5 | . . . 2 1 . 2 . Weapon . | . . . . . . . . Parts Attached 87 | 7 2 17 34 . 10 8 9 Power 13 | 1 1 4 5 . . 1 1 Engine 10 | 1 1 4 2 . . 1 1 Core 3 | . . . 3 . . . . Reactor . | . . . . . . . . Propulsion 29 | 2 1 6 11 . 4 4 1 Treads 2 | . . 2 . . . . . Leg 23 | 2 1 2 11 . 3 4 . Wheel 4 | . . 2 . . 1 . 1 Hover . | . . . . . . . . Flight . | . . . . . . . . Utility 25 | 2 . 2 11 . 3 3 4 Device 9 | 1 . . 3 . 1 1 3 Storage 2 | 1 . . 1 . . . . Processor 4 | . . . 4 . . . . Hackware . | . . . . . . . . Protection 10 | . . 2 3 . 2 2 1 Artifact . | . . . . . . . . Weapon 20 | 2 . 5 7 . 3 . 3 Energy Gun 4 | 2 . 1 1 . . . . Energy Cannon 7 | . . 1 2 . 2 . 2 Ballistic Gun 4 | . . 3 1 . . . . Ballistic Cannon 3 | . . . 3 . . . . Launcher 1 | . . . . . 1 . . Special Weapon 1 | . . . . . . . 1 Impact Weapon . | . . . . . . . . Slashing Weapon . | . . . . . . . . Piercing Weapon . | . . . . . . . . Special Melee Weapon . | . . . . . . . . Unidentified Prototypes 3 | . . . 2 . . . 1 Parts Lost 48 | . . 8 14 . 4 9 13 Power 8 | . . 3 2 . . 1 2 Propulsion 21 | . . 3 5 . 4 4 5 Utility 14 | . . 1 5 . . 4 4 Weapon 5 | . . 1 2 . . . 2 Highest Loss Streak 8 | . . 3 4 . 2 3 8 To Critical Strikes 2 | . . . . . 2 . . Average Backups 8 | 1 3 5 8 11 12 13 13 Power 1 | . 1 1 . 1 1 1 . Propulsion 2 | . 1 2 2 1 . . . Utility . | . . . 1 2 1 . . Weapon 4 | . 1 . 3 7 8 10 11 Tool/Special . | . . . . . . . . Unused Backups 12 | 1 . 1 . . 1 . 9 Power 1 | . . 1 . . . . . Propulsion 1 | 1 . . . . . . . Utility 1 | . . . . . . . 1 Weapon 8 | . . . . . 1 . 7 Tool/Special 1 | . . . . . . . 1 Average Slot Usage (%) 79 | . 100 76 86 92 88 87 46 Engine 6 | . 14 12 1 . . 1 . Core 2 | . . . 5 7 7 4 . Treads 2 | . . 4 . . . . . Leg 21 | . 28 16 32 38 23 24 7 Wheel 2 | . . 3 . . 3 1 5 Device 5 | . 14 4 2 7 7 13 7 Storage 5 | . 14 5 5 7 7 6 6 Processor 7 | . . . 16 15 15 13 12 Protection 6 | . . 7 7 . 6 6 2 Energy Gun 4 | . 28 8 . . . . . Energy Cannon 4 | . . 3 3 15 14 13 1 Ballistic Gun 5 | . . 9 4 . . . . Ballistic Cannon 1 | . . . 6 . . . . Peak Build Rating 58 | 9 9 33 38 27 45 58 57 Average Rating 24 | 4 9 15 25 27 34 52 36 On Entrance 25 | . 9 9 33 26 27 45 53 Naked Turns . | . . . . . . . . Heaviest Build 73 | 13 13 55 73 40 56 63 38 Greatest Support 75 | 20 20 40 52 50 61 75 28 Greatest Overweight (x) 3 | . . 1 2 . 2 3 1 Average Overweight (x) . | . . . . . . . . Largest Inventory Capacity 15 | 8 8 8 15 15 15 15 15 Average Capacity 9 | 7 8 6 10 15 15 15 15 Most Carried 15 | 3 6 8 15 11 15 15 15 Average Carried 8 | 1 3 5 8 11 12 13 13 Final Capacity 15 | 8 8 5 15 15 15 15 15 Final Carried 15 | 2 6 4 12 11 15 15 15 Class Distribution -------------------- 53% | Scavenger-Mutant 36% | Mutant 9% | Subdweller-Mutant Dominant Class ---------------- Mutant | -10/Materials Mutant | -10/Subcaves Scavenger-Mutant | -8/Materials Scavenger-Mutant | -7/Factory Scavenger-Mutant | -7/DSF Scavenger-Mutant | -6/Factory Mutant | -6/Lower Caves Resources | -11 -10 -10 -8 -7 -7 -6 -6 ----------- Run | Yrd Mat Sub Mat Fac DSF Fac Low Matter Collected 2068 | 270 10 353 967 . 166 249 53 Remotely . | . . . . . . . . Salvage Created 3822 | 53 126 602 1456 . 468 1039 78 Parts 184 | 6 4 46 74 . 28 26 . Haulers Intercepted 2 | . . . 1 . . 1 . Recyclers Shooed 1 | . . . . . . 1 . Parts Field Recycled . | . . . . . . . . Retrieved Matter . | . . . . . . . . Parts Self-Destructed 17 | . . 17 . . . . . Prevented . | . . . . . . . . Kills | -11 -10 -10 -8 -7 -7 -6 -6 ------- Run | Yrd Mat Sub Mat Fac DSF Fac Low Combat Hostiles Destroyed 83 | . 3 17 37 . 9 16 1 Guns 26 | . 3 13 10 . . . . Cannons 45 | . . 3 27 . 5 10 . AOE 4 | . . . . . 3 1 . Classes Destroyed 15 | 1 1 3 7 . 2 1 . Worker 1 | . . . 1 . . . . Builder 2 | . . . 2 . . . . Tunneler 2 | 2 . . . . . . . Hauler 2 | . . . 1 . . 1 . Recycler 1 | . . . 1 . . . . Watcher 2 | . . . 1 . . 1 . Swarmer 9 | . . 5 4 . . . . Grunt 34 | . 3 . 21 . 4 5 1 Brawler 2 | . . . 2 . . . . Sentry 12 | . . 1 8 . . 3 . Specialist 3 | . . . . . 3 . . Hunter 8 | . . . 2 . 1 5 . Programmer 3 | . . . . . . 3 . Heavy 1 | . . . . . 1 . . Subdweller 11 | . . 11 . . . . . Best Kill Streak 6 | 2 2 3 6 . 4 5 2 Combat Bots Only 6 | . 2 3 6 . 4 5 1 Max Kills in Single Turn 3 | 1 1 1 2 . 3 1 1 Gunslinging . | . . . . . . . . Exploded 3 | . . . . . 3 1 . Melee . | . . . . . . . . Uniques/NPCs Destroyed . | . . . . . . . . Combat | -11 -10 -10 -8 -7 -7 -6 -6 -------- Run | Yrd Mat Sub Mat Fac DSF Fac Low Hostile Shots Fired 696 | . 13 105 237 . 38 163 140 Missed 175 | . 1 22 66 . 11 42 33 Hits 521 | . 12 83 171 . 27 121 107 Projectile 521 | . 12 83 171 . 27 121 107 Critical Strikes 16 | . . 2 6 . 3 4 1 Damage Taken 8377 | . 171 1481 2517 . 540 1686 1982 Core 1255 | . 38 174 326 . 212 196 309 Absorbed by Shields 51 | . . . . . 51 . . Regen/Repaired (Parts) 62 | . . . . . . 62 . Core Remaining (%) 56 | 100 . 15 40 . 69 . . Volleys Fired 360 | 3 11 130 137 . 19 49 11 Largest 2 | 2 2 2 2 . 2 2 2 Hottest 180 | 80 80 113 113 . 180 180 180 Shots Fired 612 | 6 22 200 233 . 38 98 15 Gun 274 | 6 22 178 68 . . . . Cannon 336 | . . 22 165 . 36 98 15 Launcher 2 | . . . . . 2 . . Special . | . . . . . . . . Kinetic 261 | . . 70 191 . . . . Thermal 349 | 6 22 130 42 . 36 98 15 Explosive 2 | . . . . . 2 . . Electromagnetic . | . . . . . . . . Robot Hit Streak 29 | 3 4 21 29 . 11 28 12 Robot Miss Streak 6 | . 3 2 6 . 1 2 3 Penetration Max 1 | . . . 1 . . . . Secondary Targets . | . . . . . . . . Shots Hit Robots 403 | 3 12 100 172 . 28 78 10 Core Hits 147 | 2 7 28 67 . 15 26 2 Critical Kills 6 | . . 1 1 . 1 2 1 Critical Parts Destroyed 1 | . . . 1 . . . . Critical Strikes 12 | . . 1 7 . 1 2 1 Meltdown 5 | . . 1 . . 1 2 1 Destroy 2 | . . . 2 . . . . Blast 5 | . . . 5 . . . . Melee Attacks . | . . . . . . . . Impact . | . . . . . . . . Slashing . | . . . . . . . . Piercing . | . . . . . . . . Sneak Attacks . | . . . . . . . . Combat Hostiles . | . . . . . . . . Follow-up Attacks . | . . . . . . . . Damage Inflicted 10294 | 46 133 1559 4216 . 1169 2854 317 Guns 2690 | 46 133 1401 1110 . . . . Cannons 6846 | . . 158 3106 . 720 2545 317 Explosions 758 | . . . . . 449 309 . Melee . | . . . . . . . . Ramming . | . . . . . . . . Kinetic 3980 | . . 526 3454 . . . . Thermal 5556 | 46 133 1033 762 . 720 2545 317 Explosive 758 | . . . . . 449 309 . Electromagnetic . | . . . . . . . . Impact . | . . . . . . . . Slashing . | . . . . . . . . Piercing . | . . . . . . . . Highest Corruption 5 | . . . . . . 5 5 Average Corruption 4 | . . . . . . 5 3 Corruption Purged 3 | . . . . . . . 3 Corruption Blocked . | . . . . . . . . Effects 31 | . . . . . . 22 9 Message Errors 9 | . . . . . . 6 3 Matter Fused 5 | . . . . . . 3 2 Heat Flow Errors 5 | . . . . . . 2 3 Energy Discharges 2 | . . . . . . 2 . Parts Fused 2 | . . . . . . 2 . Data Loss (minor) 5 | . . . . . . 4 1 Data Loss (major) 1 | . . . . . . 1 . Misfires 1 | . . . . . . 1 . Weapon Failures 1 | . . . . . . 1 . Overload Shots . | . . . . . . . . Overflow Damage 90 | . . . 50 . . 38 2 Projectiles 83 | . . . 50 . . 31 2 Explosions 7 | . . . . . . 7 . Melee . | . . . . . . . . Knockbacks 23 | . . . 23 . . . . Impact . | . . . . . . . . Kinetic 22 | . . . 22 . . . . Secondary 1 | . . . 1 . . . . Self-Inflicted Damage 181 | . . . . . . 181 . Shots 2 | . . . . . . 2 . Rammed . | . . . . . . . . Targets Rammed . | . . . . . . . . Kicked . | . . . . . . . . Crushed . | . . . . . . . . Highest Temperature 288 | 54 201 20 288 . 18 242 257 Average Temperature 54 | 29 77 6 47 . 9 54 101 Received Heat Transfer 2367 | . 99 180 1251 . 108 312 417 Siege Activations . | . . . . . . . . Martial Activations . | . . . . . . . . Shielding Activations . | . . . . . . . . Robots Disrupted . | . . . . . . . . Combat Hostiles . | . . . . . . . . Robots Corrupted . | . . . . . . . . Combat Hostiles . | . . . . . . . . Parts Fried . | . . . . . . . . Impact Corruptions . | . . . . . . . . Robots Melted 8 | . . 1 . . 1 5 1 Combat Hostiles 8 | . . 1 . . 1 5 1 Parts Melted 29 | . . 1 2 . 3 22 1 Heat Transferred 8732 | 100 300 1747 1036 . 1149 3900 500 Parts Sabotaged . | . . . . . . . . Parts Stolen . | . . . . . . . . Parts Stripped . | . . . . . . . . Power Chain Reactions . | . . . . . . . . Alert | -11 -10 -10 -8 -7 -7 -6 -6 ------- Run | Yrd Mat Sub Mat Fac DSF Fac Low Maximum Alert Level 2 | . . . 1 . 1 2 . Low Security (%) 59 | 100 100 . 69 100 46 29 . Level 1 21 | . . . 30 . 53 . . Level 2 19 | . . . . . . 69 . Level 3 . | . . . . . . . . Level 4 . | . . . . . . . . Level 5 . | . . . . . . . . High Security . | . . . . . . . . Max Security . | . . . . . . . . Sterilizations 1 | . . . . . 1 . . Peak Influence 523 | 10 50 . 395 170 309 523 . Initial 170 | . 6 . 35 170 115 161 . Average 223 | 1 19 . 176 165 202 382 . Influence Increases 2548 | 10 86 140 1071 5 234 837 165 Destroy 0b10 Robot/C 1440 | . 60 120 740 . 180 320 20 Destroy 0b10 Robot/NC 55 | 10 . . 30 . 5 10 . Destroy Leader 398 | . 20 20 184 . 30 134 10 Successful Hack 22 | . 6 . . 5 . 11 . Disable Machine 270 | . . . 30 . . 240 . Destroy Structure 93 | . . . 27 . 19 47 . Partial Spotted 15 | . . . . . . 15 . Lose Combat Pursuer 255 | . . . 60 . . 60 135 Influence Decreases 2427 | . 70 98 765 214 90 642 548 Entered New Map 641 | . 4 14 33 204 50 148 188 Time Decay 1376 | . 66 74 592 10 . 404 230 Lost Part 410 | . . 10 140 . 40 90 130 Squads Dispatched 17 | . 1 . 5 . 2 9 . Investigation 6 | . 1 . 3 . . 2 . Extermination 3 | . . . . . . 3 . Reinforcement 7 | . . . 2 . 2 3 . Assault 1 | . . . . . . 1 . Garrison . | . . . . . . . . Intercept . | . . . . . . . . Searches Triggered . | . . . . . . . . Construction Impeded 1 | . . . . . . 1 . Haulers Reinforced 1 | . . . . . . 1 . Active Scanning Responses . | . . . . . . . . Cargo Convoy Interrupts . | . . . . . . . . Stealth | -11 -10 -10 -8 -7 -7 -6 -6 --------- Run | Yrd Mat Sub Mat Fac DSF Fac Low Distress Signals 6 | . . . 5 . . 1 . Communications Jammed . | . . . . . . . . Distress Signals . | . . . . . . . . Times Spotted 119 | . 5 17 53 . 9 24 11 Peak Tracking Total 6 | . 3 3 6 . 4 4 4 Tactical Retreats 9 | . . . 3 . . 3 3 Traps | -11 -10 -10 -8 -7 -7 -6 -6 ------- Run | Yrd Mat Sub Mat Fac DSF Fac Low Traps Triggered 9 | . 1 1 3 . 2 2 . Indirectly . | . . . . . . . . Trap Hack Attempts . | . . . . . . . . Triggered . | . . . . . . . . Disarmed . | . . . . . . . . Reprogrammed . | . . . . . . . . Reused . | . . . . . . . . Traps Extracted . | . . . . . . . . Installed . | . . . . . . . . Triggered . | . . . . . . . . Machines | -11 -10 -10 -8 -7 -7 -6 -6 ---------- Run | Yrd Mat Sub Mat Fac DSF Fac Low Machines Disabled 20 | . . 1 2 . . 16 1 Max in Single Turn 6 | . . 1 1 . . 6 1 Machines Repaired . | . . . . . . . . Machines Dismantled . | . . . . . . . . Machines Sabotaged . | . . . . . . . . Overloaded Fab Kills . | . . . . . . . . Hacking | -11 -10 -10 -8 -7 -7 -6 -6 --------- Run | Yrd Mat Sub Mat Fac DSF Fac Low Machines Accessed 11 | . 1 4 2 1 . 3 . Terminals 5 | . 1 . 1 1 . 2 . Fabricators . | . . . . . . . . Repair Stations 1 | . . . . . . 1 . Recycling Units . | . . . . . . . . Scanalyzers . | . . . . . . . . Garrison Access 1 | . . . 1 . . . . Total Hacks 36 | . 4 17 5 2 . 8 . Successful 27 | . 3 17 1 1 . 5 . Failed 9 | . 1 . 4 1 . 3 . Catastrophic 2 | . . . 2 . . . . Database Lockouts . | . . . . . . . . Manual 9 | . 3 . 2 . . 3 1 Terminals 12 | . 4 . 2 2 . 4 . Fabricators . | . . . . . . . . Repair Stations 4 | . . . . . . 4 . Recycling Units . | . . . . . . . . Scanalyzers . | . . . . . . . . Garrison Access 3 | . . . 3 . . . . Terminal Hacks 22 | . 2 17 1 1 . 1 . Record 15 | . 1 14 . . . . . Robot Analysis 1 | . 1 . . . . . . Open Door 1 | . . 1 . . . . . Open DSF 1 | . . . . 1 . . . Alert Level 2 | . . . 1 . . 1 . Proto ID Catalog 1 | . . 1 . . . . . Release Object 1 | . . 1 . . . . . Fabricator Hacks . | . . . . . . . . Repair Station Hacks 2 | . . . . . . 2 . Scan Component 1 | . . . . . . 1 . Repair 1 | . . . . . . 1 . Recycling Unit Hacks . | . . . . . . . . Scanalyzer . | . . . . . . . . Garrison Access Hacks . | . . . . . . . . Unauthorized Hacks 3 | . 1 . . . . 2 . Terminals 3 | . 1 . . . . 2 . Assimilate 1 | . . . . . . 1 . Botnet 2 | . 1 . . . . 1 . Fabricators . | . . . . . . . . Repair Stations . | . . . . . . . . Recycling Units . | . . . . . . . . Scanalyzers . | . . . . . . . . Garrison Access . | . . . . . . . . Data Cores Recovered . | . . . . . . . . Used . | . . . . . . . . Hacking Detections 6 | . 1 . 2 . . 3 . Full Trace Events 2 | . 1 . . . . 1 . Feedback Events . | . . . . . . . . Feedback Blocked . | . . . . . . . . Robot Schematics Acquired . | . . . . . . . . Robots Built . | . . . . . . . . Authchips . | . . . . . . . . Time . | . . . . . . . . Total Robot Build Rating . | . . . . . . . . Part Schematics Acquired . | . . . . . . . . Parts Built . | . . . . . . . . Authchips . | . . . . . . . . Time . | . . . . . . . . Total Part Build Rating . | . . . . . . . . Parts Repaired 1 | . . . . . . 1 . Time 44 | . . . . . . 44 . Parts Recycled . | . . . . . . . . Recycled Matter . | . . . . . . . . Retrieved Matter . | . . . . . . . . Retrieved Components . | . . . . . . . . Parts Scanalyzed . | . . . . . . . . Part Schematics Acquired . | . . . . . . . . Parts Damaged . | . . . . . . . . Bothacking | -11 -10 -10 -8 -7 -7 -6 -6 ------------ Run | Yrd Mat Sub Mat Fac DSF Fac Low Used RIF Installer . | . . . . . . . . Robots Hacked . | . . . . . . . . Non-combat . | . . . . . . . . Combat . | . . . . . . . . Robot Hacks Applied . | . . . . . . . . Relay Couplers Released . | . . . . . . . . Fabnet Peak Effective % . | . . . . . . . . Robots Rewired . | . . . . . . . . Allies Hacked . | . . . . . . . . Hacks Repelled . | . . . . . . . . Allies | -11 -10 -10 -8 -7 -7 -6 -6 -------- Run | Yrd Mat Sub Mat Fac DSF Fac Low Total Allies . | . . . . . . . . Largest Group . | . . . . . . . . Highest-Rated Group . | . . . . . . . . Highest-Rated Ally . | . . . . . . . . Initial Warlord ECA Mod 18 | . . . . . . 9 9 Total Orders . | . . . . . . . . Ally Attacks . | . . . . . . . . Total Damage . | . . . . . . . . Kills . | . . . . . . . . Allies Corrupted . | . . . . . . . . Allies Melted . | . . . . . . . . Intel | -11 -10 -10 -8 -7 -7 -6 -6 ------- Run | Yrd Mat Sub Mat Fac DSF Fac Low Active Infowar (turns) 1825 | 4 203 1061 537 . . . 20 Optics 537 | . . . 537 . . . . Terrain 1288 | 4 203 1061 . . . . 20 Robot Analysis Total 1 | . 1 . . . . . . Derelict Logs Recovered 2 | . . 1 . . . . 1 Drone Launches . | . . . . . . . . Drone Recoveries . | . . . . . . . . Exploration | -11 -10 -10 -8 -7 -7 -6 -6 ------------- Run | Yrd Mat Sub Mat Fac DSF Fac Low Turns Passed 7269 | 72 203 3302 1879 34 315 972 492 Spaces Moved 4532 | 44 136 2084 1042 28 174 613 411 Core 10 | 5 . . 5 . . . . Treads 376 | . . 376 . . . . . Legs 3095 | 39 136 1224 1037 28 104 527 . Wheels 1051 | . . 484 . . 70 86 411 Hover . | . . . . . . . . Flight . | . . . . . . . . Fastest Speed 50 | 50 120 110 105 120 120 120 100 Average Speed 129 | 112 120 138 126 120 128 122 106 Slowest Speed 200 | 120 120 200 196 120 190 190 115 Overloaded Moves . | . . . . . . . . Propulsion Burnouts . | . . . . . . . . Robots Hopped . | . . . . . . . . Potential Cave-ins . | . . . . . . . . Cave-ins Triggered . | . . . . . . . . Exploration Rate (%) 45 | 3 23 86 80 1 96 18 55 Regions Visited 7 Branch Regions 2 Pre-discovered Areas 1 | . . . . . . . 1 Known Exits Taken 3 | . . . 1 1 . 1 . Unknown Exits Taken 3 | 1 1 1 . . . . . Scrap Searched 7 | . . . . . . . 7 Spaces Dug . | . . . . . . . . Terrain Destroyed 91 | . . 1 20 . 22 44 4 Melee . | . . . . . . . . Projectile 37 | . . 1 20 . . 12 4 AOE 54 | . . . . . 22 32 . Terrain Rammed . | . . . . . . . . Walls Destroyed . | . . . . . . . . Machines Disabled . | . . . . . . . . Actions | -11 -10 -10 -8 -7 -7 -6 -6 --------- Run | Yrd Mat Sub Mat Fac DSF Fac Low Total 5323 | 58 153 2307 1366 28 227 734 450 Wait 223 | . 3 37 117 . . 57 9 Move 4525 | 43 135 2083 1041 27 173 612 411 Hop . | . . . . . . . . Pick Up 46 | 4 2 12 18 . 5 3 2 Fast Attach 44 | 6 . 7 16 . 3 7 5 Attach 38 | 1 . 11 13 1 3 4 5 Detach 11 | . . 2 2 . 2 1 4 Swap 19 | . 2 3 9 . 5 . . Drop 36 | 1 . 14 13 . 4 1 3 Fire 360 | 3 11 130 137 . 19 49 11 Melee . | . . . . . . . . Ram . | . . . . . . . . Kick . | . . . . . . . . Crush . | . . . . . . . . Escape Stasis 13 | . . . . . 13 . . Rewire . | . . . . . . . . Trap . | . . . . . . . . Miscellaneous 8 | . . 8 . . . . . Route ------- -11/Scrapyard -10/Materials -10/Subcaves (discovered 3 exits: *Mat x2 / Rec) -8/Materials (discovered 2 exits: *Fac x2) -7/Factory -7/DSF -6/Factory -6/Lower Caves History --------- Turn | Location | Event 4 | -11/Scrapyard | Discovered new exit (range 16) 73 | -11/Scrapyard | Entered Materials 257 | -10/Materials | Discovered new exit (range 9) 276 | -10/Materials | Entered Subcaves 277 | -10/Subcaves | Approached by a straggling Scientist 311 | -10/Subcaves | Build established: Mutant 690 | -10/Subcaves | Build established: Scavenger-Mutant 732 | -10/Subcaves | Released subatomizers from SUBCON Basin 985 | -10/Subcaves | Discovered new exit (range 9) 993 | -10/Subcaves | Build established: Mutant 1338 | -10/Subcaves | Core integrity fell below 50% 1532 | -10/Subcaves | Visited Clippyterm 1550 | -10/Subcaves | Identified exit to Recycling 1550 | -10/Subcaves | Learned Factory fabricator intel 1673 | -10/Subcaves | Lost 3 parts (1p1n1w) 1736 | -10/Subcaves | Core integrity fell below 20% 1780 | -10/Subcaves | A swath of the cavern ceiling suddenly collapsed 1952 | -10/Subcaves | Build established: Subdweller-Mutant 2099 | -10/Subcaves | Shifting Twisted Machinery released Sub. Machine Gun 2140 | -10/Subcaves | Shifting Twisted Machinery released Battle Rifle 2413 | -10/Subcaves | Shifting Twisted Machinery released Sub. Power Source 2413 | -10/Subcaves | Discovered new exit (range 8) 2419 | -10/Subcaves | Shifting Twisted Machinery released Battle Cannon 2608 | -10/Subcaves | Build established: Scavenger-Mutant 2737 | -10/Subcaves | Shifting Twisted Machinery released Sub. Machine Gun 2739 | -10/Subcaves | Shifting Twisted Machinery released Sub. Monowheel 3072 | -10/Subcaves | Visited 4L-MR0's lab 3104 | -10/Subcaves | Found Tower Shield 3106 | -10/Subcaves | Attached Tower Shield, gained temporary slots: Power, Propulsion x2, Utility x2, Weapon x2 3392 | -10/Subcaves | Build established: Mutant 3578 | -10/Subcaves | Entered Materials 3578 | -8/Materials | Evolved 4 slots: Propulsion x2, Utility x2 3936 | -8/Materials | Build established: Scavenger-Mutant 4256 | -8/Materials | Lost 3 parts (1p2n) 4323 | -8/Materials | Lost 4 parts (1n2u1w) 4324 | -8/Materials | Discovered new exit (range 18) 4508 | -8/Materials | Identified exit to Factory 4932 | -8/Materials | Core integrity fell below 50% 5095 | -8/Materials | Discovered exit to Factory (range 4) 5457 | -8/Materials | Entered Factory 5457 | -7/Factory | Evolved 2 slots: Propulsion x1, Utility x1 5458 | -7/Factory | Loaded intel: 6 fabricator locations 5491 | -7/Factory | Identified exit to DSF 5491 | -7/Factory | Entered DSF 5605 | -7/DSF | Additional patrols routed to DSF 5697 | -7/DSF | Sterilization system engaged 5707 | -7/DSF | Discovered new exit (range 15) 5717 | -7/DSF | Ambient heat levels rising (+10) 5732 | -7/DSF | Ambient heat levels rising (+10) 5747 | -7/DSF | Ambient heat levels rising (+10) 5762 | -7/DSF | Ambient heat levels rising (+10) 5777 | -7/DSF | Ambient heat levels rising (+10) 5792 | -7/DSF | Ambient heat levels rising (+10) 5804 | -7/DSF | Identified exit to Factory 5806 | -7/DSF | Entered Factory 5806 | -6/Factory | Evolved 2 slots: Utility x2 6483 | -6/Factory | Repaired Imp. Cooling System 6506 | -6/Factory | First assault squad dispatched 6666 | -6/Factory | Lost 3 parts (2n1u) 6748 | -6/Factory | Discovered new exit (range 15) 6776 | -6/Factory | Identified exit to Lower Caves 6778 | -6/Factory | Entered Lower Caves 6857 | -6/Lower Caves | Lost 8 parts (2p3n1u2w) 6976 | -6/Lower Caves | Met a Warlord Commander 6977 | -6/Lower Caves | Learned location of Warlord (-4) 6978 | -6/Lower Caves | Warlord Commander delivered Encrypted Comm Array 6978 | -6/Lower Caves | Found Encrypted Comm Array 7054 | -6/Lower Caves | Acquired the password to a Derelict Tinkerer's latest research 7092 | -6/Lower Caves | Found Prototype Special Weapon 7092 | -6/Lower Caves | Identified Molecular Deconstructor 7115 | -6/Lower Caves | Build established: Mutant 7141 | -6/Lower Caves | Encountered a Warlord checkpoint 7266 | -6/Lower Caves | Core integrity fell below 50% 7270 | -6/Lower Caves | Self-destructed Last Messages --------------- 07208_ Imp. Cooling System destroyed. 07210_ Penetrated by Slug. 07229_ Slug penetrates Wall. 07231_ System corrupted: Matter fused (-5). 07231_ Penetrated by Slug. 07239_ Slug penetrates Wall. 07241_ Imp. Heavy Armor Plating destroyed. 07242_ Slug penetrates Wall. 07245_ Adv. Targeting Computer destroyed. 07245_ Penetrated by Slug. 07248_ Slug penetrates Wall. 07249_ Penetrated by Slug. 07252_ Slug penetrates Wall. 07254_ Penetrated by Slug. 07256_ System corrupted: Heat flow error (+230). 07265_ Penetrated by Slug. 07265_ Flexi-carbon Leg destroyed. 07268_ Penetrated by Slug. 07269_ Arm. Huge Wheel destroyed. 07269_ Penetrated by Slug. Map ----- +----------------------------------------------------+ | ?????????????# ## #### % | | ?????????????## ## ## #??# %% | | ??????????????## ##?## ## #??# ## | | ???????????????# ?????## ## #??# ## ## % | | ???????????????# ???????## ### ####??# ##### | | ?????????????? ##????# #####?????# ##???# | | ???????????? #??## #????????####????##% | | ??????????? ### #?????????????????## | | ??????????? ########???????????# | | ????????????? ### ##??????????? | | ????????????? ## ##?????????? | | ????????????? ##????????? | | ????????????? #????????? | | ?????????????? ### ##???????? | | ?????????????? ### ## ##??????? | | ????????????? ####### ##?????? | | ????????????? #????## ##????? | | ?????????????????### ###???# #????? | | ???????????????????#### #??# #????? | | ??????????????????????## ## #?# #????? | | ???????????????????????# h ### ## ##????? | | ??????????????????????## ### #####?????? | | ??????????????????????# h #?# #?????????? | | ??????????????????????## #?? ##?????????? | | ??????????????????????## #?? ##??????????? | | ??????????????????????# @ ###???##???????????? | | ??????????????????????# #??????????????????? | | ?????????????????###??# #??????????????????? | | ????????????????## ##### ##??????????????????? | | ????????????????# ### ##???????????????????? | | ????????????????# ###????????????????????? | | ????????????????## ##??????????????????????? | | ?????????????????#########???????????????????????? | | ?????????????????????????????????????????????????? | | ?????????????????????????????????????????????????? | | ?????????????????????????????????????????????????? | | ?????????????????????????????????????????????????? | | ?????????????????????????????????????????????????? | | ?????????????????????????????????????????????????? | | ?????????????????????????????????????????????????? | | ?????????????????????????????????????????????????? | | ?????????????????????????????????????????????????? | | ?????????????????????????????????????????????????? | | ?????????????????????????????????????????????????? | | ?????????????????????????????????????????????????? | | ?????????????????????????????????????????????????? | | ?????????????????????????????????????????????????? | | ?????????????????????????????????????????????????? | | ?????????????????????????????????????????????????? | | | +----------------------------------------------------+ Best States ------------- Heat Dissipation 78 Energy Generation 16 Energy Capacity 290 Matter Stores 300 Matter Capacity 300 Sight Range 20 Terrain Scan Range 20 Terrain Scan Density 10 Armor Coverage 2800 Evasion (%) 55 Targeting Accuracy 8 Recoil Reduction 2 Energy Filtering 30 Item Schematics ----------------- None Robot Schematics ------------------ None Fabricated ------------ Nothing Repaired ---------- Imp. Cooling System | 11% | -6/Factory Alien Tech Used ----------------- None Achievements -------------- None Challenges ------------ None Game ------ Seed HugeSkeletonChronowheel Manual? 0 Play Time 00:43:12 Cumulative 75.9 hours Start 2025.05.31 @ 01:28:58 End 2025.05.31 @ 13:31:41 Sessions 5 Manual Loads 0 Difficulty Rogue Special Mode None Game No. 133 Rogue 117 Adventurer 16 Explorer 0 Win Type - Total 1 Types 1/0/0/0/0/0/0/0/0/0 Lore% 32 Gallery% 49 Achievement% 48 Wizard Run 0 Options --------- Layout 2 ASCII 0 Keyboard 0 Movement Mouse Keybinds 0 Fullscreen 1 Font 24/Smallcaps Map View 50x44 Zoom Use 0% Tactical HUD 1 Map Filters NONE Filters NONE Steam 1 RUN: d02718a0-4db1-48f4-b26e-d36d07359e82